Workbook

Sheet data
A1: الايراد | B1: 2012
B2: نقل | C2: نقل ثقيل | D2: اجره | E2: رحلات | F2: توكتك | G2: مقطوره | H2: جرار | I2: معدات ثقيله | J2: تروسيكيل | K2: جرار ومقطوره
B3: 2 | C3: 3 | D3: 4 | E3: 5 | F3: 6 | G3: 7 | H3: 8 | I3: 9 | J3: 10 | K3: 11
A4: 0 | B4: 85 | D4: 80 | E4: ? | F4: 84 | G4: 85 | H4: 85 | I4: 85 | J4: 84 | K4: 85
A5: 1 | B5: 90 | D5: 80 | E5: ? | F5: 84 | G5: 90 | H5: 90 | I5: 90 | J5: 84 | K5: 90
A6: 2 | B6: 95 | D6: 80 | E6: ? | F6: 84 | G6: 95 | H6: 95 | I6: 95 | J6: 84 | K6: 95
A7: 3 | B7: 100 | D7: 80 | E7: ? | F7: 84 | G7: 100 | H7: 100 | I7: 100 | J7: 84 | K7: 100
A8: 4 | B8: 110 | D8: 80 | E8: ? | F8: 84 | G8: 110 | H8: 110 | I8: 110 | J8: 84 | K8: 110
A9: 5 | B9: 150 | D9: 80 | E9: ? | F9: 84 | G9: 150 | H9: 150 | I9: 150 | J9: 84 | K9: 150
A10: 6 | C10: 150 | D10: 85 | E10: ? | F10: 84 | G10: 150 | H10: 150 | I10: 150 | J10: 84 | K10: 150
A11: 7 | C11: 150 | D11: 85 | E11: ? | F11: 84 | G11: 150 | H11: 150 | I11: 150 | J11: 84 | K11: 150
A12: 8 | C12: 150 | D12: 95 | E12: ? | F12: 84 | G12: 150 | H12: 150 | I12: 150 | J12: 84 | K12: 150
A13: 9 | C13: 150 | D13: 95 | E13: ? | F13: 84 | G13: 150 | H13: 150 | I13: 150 | J13: 84 | K13: 150
A14: 10 | C14: 150 | D14: 95 | E14: ? | F14: 84 | G14: 150 | H14: 150 | I14: 150 | J14: 84 | K14: 150
A15: 11 | C15: 154 | D15: 95 | E15: ? | F15: 84 | G15: 154 | H15: 154 | I15: 154 | J15: 84 | K15: 154
A16: 12 | C16: 168 | D16: 105 | E16: ? | F16: 84 | G16: 168 | H16: 168 | I16: 168 | J16: 84 | K16: 168
A17: 13 | C17: 182 | D17: 105 | E17: ? | F17: 84 | G17: 182 | H17: 182 | I17: 182 | J17: 84 | K17: 182
A18: 14 | C18: 196 | D18: 105 | E18: ? | F18: 84 | G18: 196 | H18: 196 | I18: 196 | J18: 84 | K18: 196
A19: 15 | C19: 210 | D19: 105 | E19: ? | F19: 84 | G19: 210 | H19: 210 | I19: 210 | J19: 84 | K19: 210
A20: 16 | C20: 224 | E20: 105 | F20: 84 | G20: 224 | H20: 224 | I20: 224 | J20: 84 | K20: 224
A21: 17 | C21: 238 | E21: 105 | F21: 84 | G21: 238 | H21: 238 | I21: 238 | J21: 84 | K21: 238
A22: 18 | C22: 252 | E22: 105 | F22: 84 | G22: 252 | H22: 252 | I22: 252 | J22: 84 | K22: 252
A23: 19 | C23: 266 | E23: 105 | F23: 84 | G23: 266 | H23: 266 | I23: 266 | J23: 84 | K23: 266
A24: 20 | C24: 280 | E24: =A24*$C$59 -> 110 | F24: 84 | G24: 280 | H24: 280 | I24: 280 | J24: 84 | K24: 280
A25: 21 | C25: 294 | E25: =A25*$C$59 -> 115.5 | F25: 84 | G25: 294 | H25: 294 | I25: 294 | J25: 84 | K25: 294
A26: 22 | C26: 308 | E26: 121 | F26: 84 | G26: 308 | H26: 308 | I26: 308 | J26: 84 | K26: 308
A27: 23 | C27: 322 | E27: 126.5 | F27: 84 | G27: 322 | H27: 322 | I27: 322 | J27: 84 | K27: 322
A28: 24 | C28: 336 | E28: 132 | F28: 84 | G28: 336 | H28: 336 | I28: 336 | J28: 84 | K28: 336
A29: 25 | C29: 350 | E29: 137.5 | F29: 84 | G29: 350 | H29: 350 | I29: 350 | J29: 84 | K29: 350
A30: 26 | C30: 364 | E30: 143 | F30: 84 | G30: 364 | H30: 364 | I30: 364 | J30: 84 | K30: 364
A31: 27 | C31: 378 | E31: 148.5 | F31: 84 | G31: 378 | H31: 378 | I31: 378 | J31: 84 | K31: 378
A32: 28 | C32: 392 | E32: 154 | F32: 84 | G32: 392 | H32: 392 | I32: 392 | J32: 84 | K32: 392
A33: 29 | C33: 406 | E33: 159.5 | F33: 84 | G33: 406 | H33: 406 | I33: 406 | J33: 84 | K33: 406
A34: 30 | C34: 420 | E34: 165 | F34: 84 | G34: 420 | H34: 420 | I34: 420 | J34: 84 | K34: 420
A35: 31 | C35: 434 | E35: 170.5 | F35: 84 | G35: 434 | H35: 434 | I35: 434 | J35: 84 | K35: 434
A36: 32 | C36: 448 | E36: 176 | F36: 84 | G36: 448 | H36: 448 | I36: 448 | J36: 84 | K36: 448
A37: 33 | C37: 462 | E37: 181.5 | F37: 84 | G37: 462 | H37: 462 | I37: 462 | J37: 84 | K37: 462
A38: 34 | C38: 476 | E38: 187 | F38: 84 | G38: 476 | H38: 476 | I38: 476 | J38: 84 | K38: 476
A39: 35 | C39: 490 | E39: 192.5 | F39: 84 | G39: 490 | H39: 490 | I39: 490 | J39: 84 | K39: 490
A40: 36 | C40: 504 | E40: 198 | F40: 84 | G40: 504 | H40: 504 | I40: 504 | J40: 84 | K40: 504
A41: 37 | C41: 518 | E41: 203.5 | F41: 84 | G41: 518 | H41: 518 | I41: 518 | J41: 84 | K41: 518
A42: 38 | C42: 532 | E42: 209 | F42: 84 | G42: 532 | H42: 532 | I42: 532 | J42: 84 | K42: 532
A43: 39 | C43: 546 | E43: 214.5 | F43: 84 | G43: 546 | H43: 546 | I43: 546 | J43: 84 | K43: 546
A44: 40 | C44: 560 | E44: 220 | F44: 84 | G44: 560 | H44: 560 | I44: 560 | J44: 84 | K44: 560
A45: 41 | C45: 574 | E45: 225.5 | F45: 84 | G45: 574 | H45: 574 | I45: 574 | J45: 84 | K45: 574
A46: 42 | C46: 588 | E46: 231 | F46: 84 | G46: 588 | H46: 588 | I46: 588 | J46: 84 | K46: 588
A47: 43 | C47: 602 | E47: 236.5 | F47: 84 | G47: 602 | H47: 602 | I47: 602 | J47: 84 | K47: 602
A48: 44 | C48: 616 | E48: 242 | F48: 84 | G48: 616 | H48: 616 | I48: 616 | J48: 84 | K48: 616
A49: 45 | C49: 630 | E49: 247.5 | F49: 84 | G49: 630 | H49: 630 | I49: 630 | J49: 84 | K49: 630
A50: 46 | C50: 644 | E50: 253 | F50: 84 | G50: 644 | H50: 644 | I50: 644 | J50: 84 | K50: 644
A51: 47 | C51: 658 | E51: 258.5 | F51: 84 | G51: 658 | H51: 658 | I51: 658 | J51: 84 | K51: 658
A52: 48 | C52: 672 | E52: 264 | F52: 84 | G52: 672 | H52: 672 | I52: 672 | J52: 84 | K52: 672
A53: 49 | C53: 686 | E53: 269.5 | F53: 84 | G53: 686 | H53: 686 | I53: 686 | J53: 84 | K53: 686
A54: 50 | C54: 700 | E54: 275 | F54: 84 | G54: 700 | H54: 700 | I54: 700 | J54: 84 | K54: 700
A55: 51 | C55: 714 | E55: 280.5 | F55: 84 | G55: 714 | H55: 714 | I55: 714 | J55: 84 | K55: 714
A56: 52 | C56: 728 | E56: 286 | F56: 84 | G56: 728 | H56: 728 | I56: 728 | J56: 84 | K56: 728
A57: 53 | C57: 742 | E57: 291.5 | F57: 84 | G57: 742 | H57: 742 | I57: 742 | J57: 84 | K57: 742
A59: سعر | B59: 14 | C59: 5.5
A61: عدد الايام
B62: نقل | C62: نقل ثقيل | D62: اجره | E62: رحلات | F62: توكتك | G62: مقطوره | H62: جرار | I62: معدات ثقيله | J62: تروسيكيل | K62: جرار ومقطوره
B63: 2 | C63: 3 | D63: 4 | E63: 5 | F63: 6 | G63: 7 | H63: 8 | I63: 9 | J63: 10 | K63: 11
A64: 0 | B64: 280 | C64: 300 | D64: 280 | E64: 140 | F64: 280 | G64: 140 | H64: 280 | I64: 280 | J64: 300 | K64: 300
A65: 6 | B65: 250 | C65: 250 | D65: 250 | E65: 140 | F65: 250 | G65: 140 | H65: 250 | I65: 250 | J65: 230 | K65: 250
A66: 10 | B66: 230 | C66: 230 | D66: 230 | E66: 140 | F66: 230 | G66: 140 | H66: 230 | I66: 230 | J66: 190 | K66: 230
A67: 15 | B67: 190 | C67: 190 | D67: 190 | E67: 140 | F67: 190 | G67: 140 | H67: 190 | I67: 190 | J67: 190 | K67: 190
A68: 100 | B68: 190 | C68: 190 | D68: 190 | E68: 140 | F68: 190 | G68: 140 | H68: 190 | I68: 190 | J68: 190 | K68: 190
A70: نسبة صافي الربح
B71: مؤمن | C71: غير مؤمن
B72: 2 | C72: 3
A73: سولار | B73: 0.3 | C73: 0.35
A74: غاز | B74: 0.3 | C74: 0.35
A75: بنزين | B75: 0.25 | C75: 0.3
A76: نقل ثقيل | B76: 0.25 | C76: 0.25
A77: توكتك | B77: 0.25 | C77: 0.3
A78: اجره رحلات | B78: 0.25 | C78: 0.25
A79: مقطوره | B79: 0.35 | C79: 0.35
A80: جرار ومقطوره | B80: 0.25 | C80: 0.25
A83: نقل | B83: سولار | C83: مؤمن
A84: نقل ثقيل | B84: غاز | C84: غير مؤمن
A85: اجره | B85: بنزين
A86: رحلات | B86: نقل ثقيل
A87: توكتك
A88: مقطوره
A89: جرار
A90: معدات ثقيله
A91: تروسيكيل
A92: جرار ومقطوره
A94: 2005
A95: 2006
A96: 2007
A97: 2008
A98: 2009
A99: 2010
A100: 2011
A101: 2012
A102: 2013
A103: 2014
A104: 2015
A105: 2016
A106: 2017
A107: 2018
A108: 2019
A109: 2020

Sheet min
A1: الممول | B1: :
A2: الملف | B2: : | C2: =35&-C3&-C4&-C5&-165 -> 35-2-552-723-165
A3: الشياخه | B3: : | C3: 2
A4: كود النشاط | B4: : | C4: 552
A5: مسلسل | B5: : | C5: 723
A6: النشاط | B6: :
A7: رقم التسجيل | B7: :
A8: الكيان | B8: :
A9: الوظيفه | B9: :
A10: بدء النشاط | B10: :
A11: العنوان | B11: :
A12: سنوات الفحص | B12: :
A14: سنة المحاسبة | C14: 2012 | N14: ايراد يومي | P14: ايراد يومى | Q14: عدد الأيام | R14: شهور العمل | S14: رقم الأعمال | T14: نسبة الربح | U14: ارباح السيارة
A15: نشاط سيارات | B15: م | C15: النوع | D15: رقم السياره | E15: الوقود | F15: حموله/ركاب | G15: السائق | H15: الشاسيه | I15: الموتور | J15: الموديل | K15: بداية النشاط | L15: نهاية النشاط | N15: طن/كرسي | O15: سعر
B16: 1 | C16: نقل ثقيل | D16: 53489 | E16: سولار | F16: 6 | G16: مؤمن | I16: 0 | J16: 2006 | K16: 2010-06-15 | L16: 2016-11-05 | P16: =IFERROR(VLOOKUP(F16,data!$A$4:$K$57,HLOOKUP(C16,data!$A$2:$K$3,2,0),2),"") -> 150 | Q16: =IFERROR(VLOOKUP(($C$14-J16),data!$A$64:$K$68,HLOOKUP(C16,data!$A$62:$K$63,2,0),2),"") -> 250 | R16: =IF(ROWS($A$1:A1)-1>YEAR(L16)-YEAR(K16),"",IF(MAX(YEAR(K16),YEAR(L16))=$C$14,ROUND((L16-DATE(YEAR(L16),1,1))/30.45,1),IF(MIN(YEAR(K16),YEAR(L16))=$C$14,ROUND((DATE($C$14,12,31)-K16)/30.45,1),12))) -> 12 | S16: =IFERROR((P16*Q16)*(R16/12),"") -> 37500 | T16: =IFERROR(VLOOKUP(E16,data!$A$73:$C$80,HLOOKUP(G16,data!$A$71:$C$72,2,),),"") -> 0.3 | U16: =IFERROR((S16*T16),"") -> 11250
B17: 2 | C17: رحلات | D17: 50253 | E17: سولار | F17: 22 | G17: غير مؤمن | J17: 2010 | K17: 2015-06-01 | L17: 2020-12-31 | P17: =IFERROR(VLOOKUP(F17,data!$A$4:$K$57,HLOOKUP(C17,data!$A$2:$K$3,2,0),2),"") -> 121 | Q17: =IFERROR(VLOOKUP(($C$14-J17),data!$A$64:$K$68,HLOOKUP(C17,data!$A$62:$K$63,2,0),2),"") -> 140 | R17: =IF(ROWS($A$1:A2)-1>YEAR(L17)-YEAR(K17),"",IF(MAX(YEAR(K17),YEAR(L17))=$C$14,ROUND((L17-DATE(YEAR(L17),1,1))/30.45,1),IF(MIN(YEAR(K17),YEAR(L17))=$C$14,ROUND((DATE($C$14,12,31)-K17)/30.45,1),12))) -> 12 | S17: =IFERROR((P17*Q17)*(R17/12),"") -> 16940 | T17: =IFERROR(VLOOKUP(E17,data!$A$73:$C$80,HLOOKUP(G17,data!$A$71:$C$72,2,),),"") -> 0.35 | U17: =IFERROR((S17*T17),"") -> 5929
B18: 3 | P18: =IFERROR(VLOOKUP(F18,data!$A$4:$K$57,HLOOKUP(C18,data!$A$2:$K$3,2,0),2),"") ->  | Q18: =IFERROR(VLOOKUP(($C$14-J18),data!$A$64:$K$68,HLOOKUP(C18,data!$A$62:$K$63,2,0),2),"") ->  | R18: =IF(ROWS($A$1:A3)-1>YEAR(L18)-YEAR(K18),"",IF(MAX(YEAR(K18),YEAR(L18))=$C$14,ROUND((L18-DATE(YEAR(L18),1,1))/30.45,1),IF(MIN(YEAR(K18),YEAR(L18))=$C$14,ROUND((DATE($C$14,12,31)-K18)/30.45,1),12))) ->  | T18: =IFERROR(VLOOKUP(E18,data!$A$73:$C$80,HLOOKUP(G18,data!$A$71:$C$72,2,),),"") -> 
B19: 4 | P19: =IFERROR(VLOOKUP(F19,data!$A$4:$K$57,HLOOKUP(C19,data!$A$2:$K$3,2,0),2),"") ->  | Q19: =IFERROR(VLOOKUP(($C$14-J19),data!$A$64:$K$68,HLOOKUP(C19,data!$A$62:$K$63,2,0),2),"") ->  | R19: =IF(ROWS($A$1:A4)-1>YEAR(L19)-YEAR(K19),"",IF(MAX(YEAR(K19),YEAR(L19))=$C$14,ROUND((L19-DATE(YEAR(L19),1,1))/30.45,1),IF(MIN(YEAR(K19),YEAR(L19))=$C$14,ROUND((DATE($C$14,12,31)-K19)/30.45,1),12))) ->  | T19: =IFERROR(VLOOKUP(E19,data!$A$73:$C$80,HLOOKUP(G19,data!$A$71:$C$72,2,),),"") -> 
B20: 5 | P20: =IFERROR(VLOOKUP(F20,data!$A$4:$K$57,HLOOKUP(C20,data!$A$2:$K$3,2,0),2),"") ->  | Q20: =IFERROR(VLOOKUP(($C$14-J20),data!$A$64:$K$68,HLOOKUP(C20,data!$A$62:$K$63,2,0),2),"") ->  | R20: =IF(ROWS($A$1:A5)-1>YEAR(L20)-YEAR(K20),"",IF(MAX(YEAR(K20),YEAR(L20))=$C$14,ROUND((L20-DATE(YEAR(L20),1,1))/30.45,1),IF(MIN(YEAR(K20),YEAR(L20))=$C$14,ROUND((DATE($C$14,12,31)-K20)/30.45,1),12))) ->  | T20: =IFERROR(VLOOKUP(E20,data!$A$73:$C$80,HLOOKUP(G20,data!$A$71:$C$72,2,),),"") -> 
B21: 6 | C21: تروسيكيل | E21: غاز | F21: 1 | G21: غير مؤمن | J21: 2000 | K21: 2012-07-01 | L21: 2020-12-31 | P21: =IFERROR(VLOOKUP(F21,data!$A$4:$K$57,HLOOKUP(C21,data!$A$2:$K$3,2,0),2),"") -> 84 | Q21: =IFERROR(VLOOKUP(($C$14-J21),data!$A$64:$K$68,HLOOKUP(C21,data!$A$62:$K$63,2,0),2),"") -> 190 | R21: =IF(ROWS($A$1:A6)-1>YEAR(L21)-YEAR(K21),"",IF(MAX(YEAR(K21),YEAR(L21))=$C$14,ROUND((L21-DATE(YEAR(L21),1,1))/30.45,1),IF(MIN(YEAR(K21),YEAR(L21))=$C$14,ROUND((DATE($C$14,12,31)-K21)/30.45,1),12))) -> 6 | S21: 7980 | T21: =IFERROR(VLOOKUP(E21,data!$A$73:$C$80,HLOOKUP(G21,data!$A$71:$C$72,2,),),"") -> 0.35 | U21: 2793
B22: 7 | P22: =IFERROR(VLOOKUP(F22,data!$A$4:$K$57,HLOOKUP(C22,data!$A$2:$K$3,2,0),2),"") ->  | Q22: =IFERROR(VLOOKUP(($C$14-J22),data!$A$64:$K$68,HLOOKUP(C22,data!$A$62:$K$63,2,0),2),"") ->  | R22: =IF(ROWS($A$1:A7)-1>YEAR(L22)-YEAR(K22),"",IF(MAX(YEAR(K22),YEAR(L22))=$C$14,ROUND((L22-DATE(YEAR(L22),1,1))/30.45,1),IF(MIN(YEAR(K22),YEAR(L22))=$C$14,ROUND((DATE($C$14,12,31)-K22)/30.45,1),12))) ->  | T22: =IFERROR(VLOOKUP(E22,data!$A$73:$C$80,HLOOKUP(G22,data!$A$71:$C$72,2,),),"") -> 
B23: 8 | P23: =IFERROR(VLOOKUP(F23,data!$A$4:$K$57,HLOOKUP(C23,data!$A$2:$K$3,2,0),2),"") ->  | Q23: =IFERROR(VLOOKUP(($C$14-J23),data!$A$64:$K$68,HLOOKUP(C23,data!$A$62:$K$63,2,0),2),"") ->  | R23: =IF(ROWS($A$1:A8)-1>YEAR(L23)-YEAR(K23),"",IF(MAX(YEAR(K23),YEAR(L23))=$C$14,ROUND((L23-DATE(YEAR(L23),1,1))/30.45,1),IF(MIN(YEAR(K23),YEAR(L23))=$C$14,ROUND((DATE($C$14,12,31)-K23)/30.45,1),12))) ->  | T23: =IFERROR(VLOOKUP(E23,data!$A$73:$C$80,HLOOKUP(G23,data!$A$71:$C$72,2,),),"") -> 
B24: 9 | P24: =IFERROR(VLOOKUP(F24,data!$A$4:$K$57,HLOOKUP(C24,data!$A$2:$K$3,2,0),2),"") ->  | Q24: =IFERROR(VLOOKUP(($C$14-J24),data!$A$64:$K$68,HLOOKUP(C24,data!$A$62:$K$63,2,0),2),"") ->  | R24: =IF(ROWS($A$1:A9)-1>YEAR(L24)-YEAR(K24),"",IF(MAX(YEAR(K24),YEAR(L24))=$C$14,ROUND((L24-DATE(YEAR(L24),1,1))/30.45,1),IF(MIN(YEAR(K24),YEAR(L24))=$C$14,ROUND((DATE($C$14,12,31)-K24)/30.45,1),12))) ->  | T24: =IFERROR(VLOOKUP(E24,data!$A$73:$C$80,HLOOKUP(G24,data!$A$71:$C$72,2,),),"") -> 
B25: 10 | P25: =IFERROR(VLOOKUP(F25,data!$A$4:$K$57,HLOOKUP(C25,data!$A$2:$K$3,2,0),2),"") ->  | Q25: =IFERROR(VLOOKUP(($C$14-J25),data!$A$64:$K$68,HLOOKUP(C25,data!$A$62:$K$63,2,0),2),"") ->  | R25: =IF(ROWS($A$1:A10)-1>YEAR(L25)-YEAR(K25),"",IF(MAX(YEAR(K25),YEAR(L25))=$C$14,ROUND((L25-DATE(YEAR(L25),1,1))/30.45,1),IF(MIN(YEAR(K25),YEAR(L25))=$C$14,ROUND((DATE($C$14,12,31)-K25)/30.45,1),12))) ->  | T25: =IFERROR(VLOOKUP(E25,data!$A$73:$C$80,HLOOKUP(G25,data!$A$71:$C$72,2,),),"") -> 
B26: 11 | P26: =IFERROR(VLOOKUP(F26,data!$A$4:$K$57,HLOOKUP(C26,data!$A$2:$K$3,2,0),2),"") ->  | Q26: =IFERROR(VLOOKUP(($C$14-J26),data!$A$64:$K$68,HLOOKUP(C26,data!$A$62:$K$63,2,0),2),"") ->  | R26: =IF(ROWS($A$1:A11)-1>YEAR(L26)-YEAR(K26),"",IF(MAX(YEAR(K26),YEAR(L26))=$C$14,ROUND((L26-DATE(YEAR(L26),1,1))/30.45,1),IF(MIN(YEAR(K26),YEAR(L26))=$C$14,ROUND((DATE($C$14,12,31)-K26)/30.45,1),12))) ->  | T26: =IFERROR(VLOOKUP(E26,data!$A$73:$C$80,HLOOKUP(G26,data!$A$71:$C$72,2,),),"") -> 
B27: 12 | P27: =IFERROR(VLOOKUP(F27,data!$A$4:$K$57,HLOOKUP(C27,data!$A$2:$K$3,2,0),2),"") ->  | Q27: =IFERROR(VLOOKUP(($C$14-J27),data!$A$64:$K$68,HLOOKUP(C27,data!$A$62:$K$63,2,0),2),"") ->  | R27: =IF(ROWS($A$1:A12)-1>YEAR(L27)-YEAR(K27),"",IF(MAX(YEAR(K27),YEAR(L27))=$C$14,ROUND((L27-DATE(YEAR(L27),1,1))/30.45,1),IF(MIN(YEAR(K27),YEAR(L27))=$C$14,ROUND((DATE($C$14,12,31)-K27)/30.45,1),12))) ->  | T27: =IFERROR(VLOOKUP(E27,data!$A$73:$C$80,HLOOKUP(G27,data!$A$71:$C$72,2,),),"") -> 
B28: 13 | P28: =IFERROR(VLOOKUP(F28,data!$A$4:$K$57,HLOOKUP(C28,data!$A$2:$K$3,2,0),2),"") ->  | Q28: =IFERROR(VLOOKUP(($C$14-J28),data!$A$64:$K$68,HLOOKUP(C28,data!$A$62:$K$63,2,0),2),"") ->  | R28: =IF(ROWS($A$1:A13)-1>YEAR(L28)-YEAR(K28),"",IF(MAX(YEAR(K28),YEAR(L28))=$C$14,ROUND((L28-DATE(YEAR(L28),1,1))/30.45,1),IF(MIN(YEAR(K28),YEAR(L28))=$C$14,ROUND((DATE($C$14,12,31)-K28)/30.45,1),12))) ->  | T28: =IFERROR(VLOOKUP(E28,data!$A$73:$C$80,HLOOKUP(G28,data!$A$71:$C$72,2,),),"") -> 
B29: 14 | P29: =IFERROR(VLOOKUP(F29,data!$A$4:$K$57,HLOOKUP(C29,data!$A$2:$K$3,2,0),2),"") ->  | Q29: =IFERROR(VLOOKUP(($C$14-J29),data!$A$64:$K$68,HLOOKUP(C29,data!$A$62:$K$63,2,0),2),"") ->  | R29: =IF(ROWS($A$1:A14)-1>YEAR(L29)-YEAR(K29),"",IF(MAX(YEAR(K29),YEAR(L29))=$C$14,ROUND((L29-DATE(YEAR(L29),1,1))/30.45,1),IF(MIN(YEAR(K29),YEAR(L29))=$C$14,ROUND((DATE($C$14,12,31)-K29)/30.45,1),12))) ->  | T29: =IFERROR(VLOOKUP(E29,data!$A$73:$C$80,HLOOKUP(G29,data!$A$71:$C$72,2,),),"") -> 
B30: 15 | P30: =IFERROR(VLOOKUP(F30,data!$A$4:$K$57,HLOOKUP(C30,data!$A$2:$K$3,2,0),2),"") ->  | Q30: =IFERROR(VLOOKUP(($C$14-J30),data!$A$64:$K$68,HLOOKUP(C30,data!$A$62:$K$63,2,0),2),"") ->  | R30: =IF(ROWS($A$1:A15)-1>YEAR(L30)-YEAR(K30),"",IF(MAX(YEAR(K30),YEAR(L30))=$C$14,ROUND((L30-DATE(YEAR(L30),1,1))/30.45,1),IF(MIN(YEAR(K30),YEAR(L30))=$C$14,ROUND((DATE($C$14,12,31)-K30)/30.45,1),12))) ->  | T30: =IFERROR(VLOOKUP(E30,data!$A$73:$C$80,HLOOKUP(G30,data!$A$71:$C$72,2,),),"") -> 
S31: =SUM(S16:S30) -> 62420 | U31: =SUM(U16:U30) -> 19972
